[Event "BPB Limburg Open 2019 Group A"]
[Site "Maastricht, Netherlands"]
[Date "2019.06.09"]
[Round "4.2"]
[White "Ernst, Sipke"]
[Black "Bok, Benjamin"]
[Result "0-1"]
[TimeControl "2h + 15 sec/move"]
[WhiteFideId "1004689"]
[BlackFideId "1017063"]
[WhiteElo "2541"]
[BlackElo "2638"]

1. Nf3 {[%clk 01:59:05]} {[%emt 00:01:24]} d5 {[%clk 01:57:43]} {[%emt
00:02:48]} 2. d4 {[%clk 01:58:38]} {[%emt 00:00:41]} Nf6 {[%clk 01:57:38]}
{[%emt 00:00:21]} 3. c4 {[%clk 01:58:04]} {[%emt 00:00:48]} e6 {[%clk
01:57:49]} {[%emt 00:00:05]} 4. Nc3 {[%clk 01:57:08]} {[%emt 00:01:12]} c6
{[%clk 01:57:16]} {[%emt 00:00:48]} 5. Bg5 {[%clk 01:56:18]} {[%emt 00:01:04]}
h6 {[%clk 01:57:27]} {[%emt 00:00:05]} 6. Bxf6 {[%clk 01:56:16]} {[%emt
00:00:17]} Qxf6 {[%clk 01:57:37]} {[%emt 00:00:05]} 7. Qb3 {[%clk 01:54:01]}
{[%emt 00:02:30]} dxc4 {[%clk 01:57:32]} {[%emt 00:00:20]} 8. Qxc4 {[%clk
01:54:07]} {[%emt 00:00:08]} Nd7 {[%clk 01:57:45]} {[%emt 00:00:03]} 9. e3
{[%clk 01:53:53]} {[%emt 00:00:28]} g6 {[%clk 01:57:02]} {[%emt 00:00:58]} 10.
Bd3 {[%clk 01:51:33]} {[%emt 00:02:34]} Bg7 {[%clk 01:53:47]} {[%emt 00:03:32]}
11. O-O {[%clk 01:51:36]} {[%emt 00:00:11]} Qe7 {[%clk 01:48:26]} {[%emt
00:05:37]} 12. Rfd1 {[%clk 01:38:25]} {[%emt 00:13:26]} O-O {[%clk 01:48:15]}
{[%emt 00:00:26]} 13. Be4 {[%clk 01:37:19]} {[%emt 00:01:21]} Rd8 {[%clk
01:43:19]} {[%emt 00:05:11]} 14. Rac1 {[%clk 01:30:00]} {[%emt 00:07:34]} Nb6
{[%clk 01:20:35]} {[%emt 00:22:59]} 15. Qb3 {[%clk 01:20:41]} {[%emt 00:09:34]}
Bd7 {[%clk 01:19:20]} {[%emt 00:01:30]} 16. Ne2 {[%clk 01:14:03]} {[%emt
00:06:53]} Be8 {[%clk 01:16:45]} {[%emt 00:02:51]} 17. Bb1 {[%clk 01:06:36]}
{[%emt 00:07:42]} Rac8 {[%clk 01:05:21]} {[%emt 00:11:39]} 18. Rc5 {[%clk
01:01:24]} {[%emt 00:05:26]} Nd5 {[%clk 00:53:52]} {[%emt 00:11:45]} 19. Rdc1
{[%clk 00:50:34]} {[%emt 00:11:05]} b6 {[%clk 00:48:37]} {[%emt 00:05:30]} 20.
R5c4 {[%clk 00:48:32]} {[%emt 00:02:16]} c5 {[%clk 00:46:31]} {[%emt 00:02:21]}
21. a3 {[%clk 00:45:34]} {[%emt 00:03:13]} Rc7 {[%clk 00:36:39]} {[%emt
00:10:07]} 22. Be4 {[%clk 00:39:46]} {[%emt 00:06:03]} Nf6 {[%clk 00:35:15]}
{[%emt 00:01:39]} 23. Bd3 {[%clk 00:38:10]} {[%emt 00:01:51]} Bc6 {[%clk
00:33:48]} {[%emt 00:01:42]} 24. R4c2 {[%clk 00:33:24]} {[%emt 00:05:01]} Bd5
{[%clk 00:24:55]} {[%emt 00:09:08]} 25. Qb5 {[%clk 00:26:40]} {[%emt 00:06:59]}
Ne8 {[%clk 00:18:26]} {[%emt 00:06:44]} 26. dxc5 {[%clk 00:13:30]} {[%emt
00:13:26]} bxc5 {[%clk 00:18:05]} {[%emt 00:00:35]} 27. Nf4 {[%clk 00:11:58]}
{[%emt 00:01:47]} Bxf3 {[%emt 00:03:34]} 28. gxf3 Rb7 29. Qc4 Bxb2 30. Rb1 Be5
31. Rxb7 Qxb7 32. Be4 Qb1+ 33. Rc1 Rd1+ 34. Rxd1 Qxd1+ 35. Kg2 Bxf4 {[%clk
00:14:46]} 36. exf4 {[%clk 00:12:07]} Qd6 {[%clk 00:04:05]} {[%emt 00:23:51]}
37. Qa4 {[%clk 00:03:32]} Nf6 {[%clk 00:04:05]} 38. Qxa7 {[%clk 00:03:32]} Nh5
{[%clk 00:04:05]} 39. h3 Nxf4+ {[%clk 00:03:13]} 40. Kh2 {[%clk 00:02:24]} Kg7
{[%clk 00:02:37]} {[%emt 00:00:51]} 41. a4 {[%clk 00:01:41]} {[%emt 00:00:58]}
0-1

[Event "BPB Limburg Open 2019 Group A"]
[Site "Maastricht, Netherlands"]
[Date "2019.06.09"]
[Round "4.3"]
[White "Helmond, Frans"]
[Black "Donchenko, Alexander"]
[Result "0-1"]
[TimeControl "2h + 15 sec/move"]
[WhiteFideId "1003755"]
[BlackFideId "24603295"]
[WhiteElo "2108"]
[BlackElo "2618"]

1. e4 {[%clk 02:00:27]} {[%emt 00:00:03]} c5 {[%clk 02:00:18]} {[%emt
00:00:12]} 2. c3 {[%clk 02:00:32]} {[%emt 00:00:10]} Nf6 {[%clk 01:59:05]}
{[%emt 00:01:28]} 3. e5 {[%clk 02:00:38]} {[%emt 00:00:08]} Nd5 {[%clk
01:59:14]} {[%emt 00:00:06]} 4. d4 {[%clk 02:00:47]} {[%emt 00:00:06]} cxd4
{[%clk 01:59:24]} {[%emt 00:00:06]} 5. Nf3 {[%clk 02:00:56]} {[%emt 00:00:06]}
d6 {[%clk 01:58:59]} {[%emt 00:00:39]} 6. Bc4 {[%clk 01:59:48]} {[%emt
00:01:23]} Nb6 {[%clk 01:54:43]} {[%emt 00:04:32]} 7. Bb5+ {[%clk 01:58:50]}
{[%emt 00:01:12]} Bd7 {[%clk 01:51:42]} {[%emt 00:03:16]} 8. Bxd7+ {[%clk
01:58:45]} {[%emt 00:00:20]} Qxd7 {[%clk 01:51:04]} {[%emt 00:00:53]} 9. cxd4
{[%clk 01:58:41]} {[%emt 00:00:20]} Nc6 {[%clk 01:44:49]} {[%emt 00:06:30]} 10.
exd6 {[%clk 01:45:41]} {[%emt 00:13:15]} e6 {[%clk 01:44:42]} {[%emt 00:00:23]}
11. O-O {[%clk 01:45:38]} {[%emt 00:00:18]} Bxd6 {[%clk 01:44:42]} {[%emt
00:00:14]} 12. Nc3 {[%clk 01:45:40]} {[%emt 00:00:13]} O-O {[%clk 01:44:35]}
{[%emt 00:00:22]} 13. Re1 {[%clk 01:40:40]} {[%emt 00:05:16]} Rfd8 {[%clk
01:41:30]} {[%emt 00:03:19]} 14. Bg5 {[%clk 01:34:26]} {[%emt 00:06:29]} Be7
{[%clk 01:40:25]} {[%emt 00:01:19]} 15. Bxe7 {[%clk 01:32:52]} {[%emt
00:01:49]} Qxe7 {[%clk 01:40:28]} {[%emt 00:00:13]} 16. a3 {[%clk 01:07:13]}
{[%emt 00:25:55]} Rd7 {[%clk 01:30:59]} {[%emt 00:09:43]} 17. Qb3 {[%clk
01:01:52]} {[%emt 00:05:36]} Nxd4 {[%clk 01:28:33]} {[%emt 00:02:41]} 18. Nxd4
{[%clk 01:01:52]} {[%emt 00:00:15]} Rxd4 {[%clk 01:28:40]} {[%emt 00:00:08]} 19.
Nb5 {[%clk 01:01:58]} {[%emt 00:00:10]} Rd2 {[%clk 01:27:12]} {[%emt 00:01:42]}
20. Rad1 {[%clk 00:52:16]} {[%emt 00:09:57]} Rxd1 {[%clk 01:25:28]} {[%emt
00:01:59]} 21. Rxd1 {[%clk 00:51:21]} {[%emt 00:01:10]} Nd5 {[%clk 01:25:20]}
{[%emt 00:00:23]} 22. Nc3 {[%clk 00:50:11]} {[%emt 00:01:26]} Nf6 {[%clk
01:25:03]} {[%emt 00:00:32]} 23. Qa4 {[%clk 00:49:24]} {[%emt 00:01:02]} h6
{[%clk 01:24:12]} {[%emt 00:01:05]} 24. h3 {[%clk 00:49:34]} {[%emt 00:00:05]}
a6 {[%clk 01:22:58]} {[%emt 00:01:29]} 25. Qd4 {[%clk 00:49:35]} {[%emt
00:00:15]} Rc8 {[%clk 01:21:19]} {[%emt 00:01:53]} 26. Qb6 {[%clk 00:44:22]}
{[%emt 00:05:28]} Kf8 {[%clk 01:18:45]} {[%emt 00:02:49]} 27. Rd4 {[%clk
00:41:24]} {[%emt 00:03:13]} Qc7 {[%clk 01:18:02]} {[%emt 00:00:57]} 28. Qb4+
{[%clk 00:39:37]} {[%emt 00:02:02]} Kg8 {[%clk 01:18:07]} {[%emt 00:00:10]} 29.
a4 {[%clk 00:38:26]} {[%emt 00:01:27]} Qe5 {[%clk 01:10:48]} {[%emt 00:07:33]}
30. Qxb7 {[%clk 00:33:46]} {[%emt 00:04:56]} Rb8 {[%clk 01:09:47]} {[%emt
00:01:16]} 31. Qa7 {[%clk 00:32:21]} {[%emt 00:01:39]} Rxb2 {[%clk 01:09:03]}
{[%emt 00:00:59]} 32. Rd8+ {[%clk 00:32:23]} {[%emt 00:00:13]} Kh7 {[%clk
01:09:09]} {[%emt 00:00:09]} 33. Qd4 {[%clk 00:32:33]} {[%emt 00:00:05]} Qe1+
{[%clk 01:07:59]} {[%emt 00:01:25]} 34. Kh2 {[%clk 00:32:42]} {[%emt 00:00:07]}
Rxf2 {[%clk 01:06:26]} {[%emt 00:01:47]} 35. Qd3+ {[%clk 00:25:45]} {[%emt
00:07:13]} g6 {[%clk 01:06:34]} {[%emt 00:00:06]} 36. Qg3 {[%clk 00:25:56]}
{[%emt 00:00:04]} Nh5 {[%clk 01:05:08]} {[%emt 00:01:41]} 37. Rd1 {[%clk
00:25:57]} {[%emt 00:00:14]} Nxg3 {[%clk 01:04:39]} {[%emt 00:00:44]} 38. Rxe1
{[%clk 00:26:00]} {[%emt 00:00:12]} Rc2 {[%clk 01:04:47]} {[%emt 00:00:07]} 39.
Nb1 {[%clk 00:20:53]} {[%emt 00:05:23]} Nf5 {[%clk 01:04:51]} {[%emt 00:00:10]}
40. Re5 {[%clk 00:20:42]} {[%emt 00:00:26]} h5 {[%clk 01:04:37]} {[%emt
00:00:30]} 0-1

[Event "BPB Limburg Open 2019 Group A"]
[Site "Maastricht, Netherlands"]
[Date "2019.06.09"]
[Round "4.4"]
[White "Gramb, Marius"]
[Black "Van Foreest, Jorden"]
[Result "0-1"]
[TimeControl "2h + 15 sec/move"]
[WhiteFideId "24656593"]
[BlackFideId "1039784"]
[WhiteElo "2148"]
[BlackElo "2610"]

1. d4 {[%clk 02:00:27]} {[%emt 00:00:01]} g6 {[%clk 02:00:21]} {[%emt
00:00:09]} 2. e4 {[%clk 01:59:44]} {[%emt 00:00:59]} Bg7 {[%clk 02:00:30]}
{[%emt 00:00:06]} 3. Nc3 {[%clk 01:59:09]} {[%emt 00:00:50]} d6 {[%clk
01:59:21]} {[%emt 00:01:23]} 4. f4 {[%clk 01:58:24]} {[%emt 00:01:01]} a6
{[%clk 01:58:24]} {[%emt 00:01:12]} 5. Nf3 {[%clk 01:54:05]} {[%emt 00:04:33]}
Nd7 {[%clk 01:58:03]} {[%emt 00:00:36]} 6. e5 {[%clk 01:44:56]} {[%emt
00:09:25]} Nh6 {[%clk 01:55:26]} {[%emt 00:02:51]} 7. Be3 {[%clk 01:40:36]}
{[%emt 00:04:35]} O-O {[%clk 01:53:50]} {[%emt 00:01:50]} 8. Qd2 {[%clk
01:30:30]} {[%emt 00:10:22]} b5 {[%clk 01:53:09]} {[%emt 00:00:56]} 9. Bd3
{[%clk 01:26:37]} {[%emt 00:04:08]} c5 {[%clk 01:43:57]} {[%emt 00:09:27]} 10.
Be4 {[%clk 01:22:56]} {[%emt 00:03:56]} Rb8 {[%clk 01:40:48]} {[%emt 00:03:24]}
11. dxc5 {[%clk 01:20:42]} {[%emt 00:02:29]} Nxc5 {[%clk 01:39:15]} {[%emt
00:01:48]} 12. Bxc5 {[%clk 01:16:04]} {[%emt 00:04:53]} dxc5 {[%clk 01:39:05]}
{[%emt 00:00:25]} 13. Rd1 {[%clk 01:15:15]} {[%emt 00:01:03]} Qxd2+ {[%clk
01:34:36]} {[%emt 00:04:44]} 14. Rxd2 {[%clk 01:14:21]} {[%emt 00:01:09]} f5
{[%clk 01:34:13]} {[%emt 00:00:39]} 15. Bc6 {[%clk 01:07:20]} {[%emt 00:07:16]}
e6 {[%clk 01:33:35]} {[%emt 00:00:52]} 16. Ke2 {[%clk 01:01:47]} {[%emt
00:05:48]} Nf7 {[%clk 01:33:04]} {[%emt 00:00:46]} 17. h4 {[%clk 00:57:52]}
{[%emt 00:04:11]} h6 {[%clk 01:27:52]} {[%emt 00:05:28]} 18. Rhd1 {[%clk
00:54:14]} {[%emt 00:03:51]} g5 {[%clk 01:27:51]} {[%emt 00:00:17]} 19. g3
{[%clk 00:53:16]} {[%emt 00:01:14]} Rb6 {[%clk 01:15:10]} {[%emt 00:12:56]} 20.
Bd7 {[%clk 00:49:50]} {[%emt 00:03:41]} Bb7 {[%clk 01:14:38]} {[%emt 00:00:47]}
21. Rd3 {[%clk 00:41:16]} {[%emt 00:08:49]} g4 {[%clk 01:04:40]} {[%emt
00:10:13]} 22. Ne1 {[%clk 00:39:19]} {[%emt 00:02:11]} c4 {[%clk 01:03:36]}
{[%emt 00:01:19]} 23. Re3 {[%clk 00:32:23]} {[%emt 00:07:12]} Bc8 {[%clk
01:02:08]} {[%emt 00:01:43]} 24. Kf2 {[%clk 00:29:37]} {[%emt 00:03:01]} Rb7
{[%clk 01:00:43]} {[%emt 00:01:39]} 25. Bxc8 {[%clk 00:21:47]} {[%emt
00:08:05]} Rxc8 {[%clk 01:00:15]} {[%emt 00:00:43]} 26. Re2 {[%clk 00:21:42]}
{[%emt 00:00:20]} Bf8 {[%clk 01:00:17]} {[%emt 00:00:13]} 27. Red2 {[%clk
00:20:48]} {[%emt 00:01:10]} Bc5+ {[%clk 00:56:20]} {[%emt 00:04:11]} 28. Ke2
{[%clk 00:20:51]} {[%emt 00:00:13]} Kf8 {[%clk 00:55:56]} {[%emt 00:00:39]} 29.
Rd7 {[%clk 00:17:27]} {[%emt 00:03:39]} Rcc7 {[%clk 00:52:10]} {[%emt
00:04:01]} 30. Rxc7 {[%clk 00:16:46]} {[%emt 00:00:57]} Rxc7 {[%clk 00:52:07]}
{[%emt 00:00:18]} 31. a3 {[%clk 00:15:31]} {[%emt 00:01:30]} Ke8 {[%clk
00:51:12]} {[%emt 00:01:10]} 32. Nb1 {[%clk 00:12:48]} {[%emt 00:02:58]} Nd8
{[%clk 00:50:24]} {[%emt 00:01:03]} 33. b4 {[%clk 00:08:42]} {[%emt 00:04:21]}
cxb3 {[%clk 00:46:18]} {[%emt 00:04:21]} 34. cxb3 {[%clk 00:08:55]} {[%emt
00:00:02]} Bf8 {[%clk 00:44:15]} {[%emt 00:02:18]} 35. Kd2 {[%clk 00:06:33]}
{[%emt 00:02:36]} b4 {[%clk 00:43:37]} {[%emt 00:00:53]} 36. Nc2 {[%clk
00:04:15]} {[%emt 00:02:33]} a5 {[%clk 00:42:44]} {[%emt 00:01:08]} 37. axb4
{[%clk 00:03:30]} {[%emt 00:01:00]} axb4 {[%clk 00:42:24]} {[%emt 00:00:34]} 38.
Ne3 {[%clk 00:02:26]} {[%emt 00:01:20]} Nc6 {[%clk 00:42:24]} {[%emt 00:00:15]}
39. Ke2 {[%clk 00:00:50]} {[%emt 00:01:52]} Bc5 {[%clk 00:41:54]} {[%emt
00:00:45]} 40. Nc2 {[%clk 00:00:36]} {[%emt 00:00:29]} Ra7 {[%clk 00:39:30]}
{[%emt 00:02:38]} 41. Nd2 {[%clk 00:00:37]} {[%emt 00:00:14]} Ra2 {[%clk
00:39:41]} {[%emt 00:00:04]} 42. Kd3 {[%clk 00:00:23]} {[%emt 00:00:30]} Bf2
{[%clk 00:39:48]} {[%emt 00:00:07]} 43. Nf1 {[%clk 00:00:24]} {[%emt 00:00:13]}
Rb2 {[%clk 00:39:51]} {[%emt 00:00:12]} 44. Na1 {[%clk 00:00:18]} {[%emt
00:00:22]} Na5 {[%clk 00:36:29]} {[%emt 00:03:37]} 45. Rd2 {[%clk 00:00:23]}
{[%emt 00:00:09]} Rb1 {[%clk 00:35:44]} {[%emt 00:01:00]} 46. Rxf2 {[%clk
00:00:22]} {[%emt 00:00:16]} Rxa1 {[%clk 00:35:55]} {[%emt 00:00:03]} 47. Kd4
{[%clk 00:00:21]} {[%emt 00:00:17]} Nxb3+ {[%clk 00:36:03]} {[%emt 00:00:07]}
48. Kc4 {[%clk 00:00:18]} {[%emt 00:00:18]} Rxf1 {[%clk 00:35:55]} {[%emt
00:00:06]} 0-1

[Event "BPB Limburg Open 2019 Group A"]
[Site "Maastricht, Netherlands"]
[Date "2019.06.09"]
[Round "4.5"]
[White "Engel, Johann"]
[Black "Gurevich, Mikhail"]
[Result "0-1"]
[TimeControl "2h + 15 sec/move"]
[WhiteFideId "12920509"]
[BlackFideId "200930"]
[WhiteElo "2165"]
[BlackElo "2579"]

1. d4 {[%clk 02:00:28]} {[%emt 00:00:01]} d6 {[%clk 01:58:57]} {[%emt
00:01:33]} 2. c4 {[%clk 02:00:24]} {[%emt 00:00:19]} f5 {[%clk 01:59:06]}
{[%emt 00:00:05]} 3. Nc3 {[%clk 02:00:35]} {[%emt 00:00:05]} Nf6 {[%clk
01:59:16]} {[%emt 00:00:05]} 4. Nf3 {[%clk 02:00:40]} {[%emt 00:00:10]} g6
{[%clk 01:59:21]} {[%emt 00:00:10]} 5. Bg5 {[%clk 01:59:16]} {[%emt 00:01:40]}
Nbd7 {[%clk 01:59:06]} {[%emt 00:00:30]} 6. e3 {[%clk 01:58:05]} {[%emt
00:01:25]} Bg7 {[%clk 01:57:57]} {[%emt 00:01:24]} 7. Bd3 {[%clk 01:51:39]}
{[%emt 00:06:42]} e5 {[%clk 01:54:53]} {[%emt 00:03:18]} 8. e4 {[%clk
01:44:08]} {[%emt 00:07:46]} f4 {[%clk 01:39:36]} {[%emt 00:15:33]} 9. Nd5
{[%clk 01:37:11]} {[%emt 00:07:12]} c6 {[%clk 01:33:22]} {[%emt 00:06:29]} 10.
Nxf6+ {[%clk 01:34:54]} {[%emt 00:02:33]} Bxf6 {[%clk 01:33:27]} {[%emt
00:00:09]} 11. Bxf6 {[%clk 01:35:05]} {[%emt 00:00:05]} Qxf6 {[%clk 01:30:54]}
{[%emt 00:02:48]} 12. Bc2 {[%clk 01:31:19]} {[%emt 00:04:01]} g5 {[%clk
01:28:17]} {[%emt 00:02:51]} 13. Qd3 {[%clk 01:25:23]} {[%emt 00:06:11]} g4
{[%clk 01:07:26]} {[%emt 00:21:06]} 14. dxe5 {[%clk 01:25:29]} {[%emt
00:00:09]} dxe5 {[%clk 01:07:04]} {[%emt 00:00:37]} 15. Nd2 {[%clk 01:25:24]}
{[%emt 00:00:20]} Nc5 {[%clk 00:54:09]} {[%emt 00:13:11]} 16. Qc3 {[%clk
01:19:41]} {[%emt 00:05:58]} a5 {[%clk 00:50:02]} {[%emt 00:04:21]} 17. O-O-O
{[%clk 01:03:36]} {[%emt 00:16:20]} Qe7 {[%clk 00:40:18]} {[%emt 00:10:00]} 18.
a3 {[%clk 00:51:56]} {[%emt 00:11:55]} a4 {[%clk 00:31:50]} {[%emt 00:08:43]}
19. Nb1 {[%clk 00:46:14]} {[%emt 00:05:57]} h5 {[%clk 00:30:47]} {[%emt
00:01:17]} 20. Qb4 {[%clk 00:42:30]} {[%emt 00:03:59]} Be6 {[%clk 00:30:35]}
{[%emt 00:00:27]} 21. Rd2 {[%clk 00:28:40]} {[%emt 00:14:06]} Nb3+ {[%clk
00:29:45]} {[%emt 00:01:04]} 22. Bxb3 {[%clk 00:28:50]} {[%emt 00:00:06]} Qxb4
{[%clk 00:29:55]} {[%emt 00:00:05]} 23. axb4 {[%clk 00:29:01]} {[%emt
00:00:04]} axb3 {[%clk 00:30:05]} {[%emt 00:00:03]} 24. Na3 {[%clk 00:23:14]}
{[%emt 00:06:04]} Ra4 {[%clk 00:21:31]} {[%emt 00:08:48]} 25. Kb1 {[%clk
00:19:31]} {[%emt 00:03:58]} Rxb4 {[%clk 00:20:54]} {[%emt 00:00:51]} 26. Rc1
{[%clk 00:19:31]} {[%emt 00:00:15]} Ke7 {[%clk 00:20:32]} {[%emt 00:00:36]} 27.
Rc3 {[%clk 00:18:49]} {[%emt 00:00:58]} Rd8 {[%clk 00:20:05]} {[%emt 00:00:41]}
28. Rxd8 {[%clk 00:18:10]} {[%emt 00:00:55]} Kxd8 {[%clk 00:20:15]} {[%emt
00:00:05]} 29. Kc1 {[%clk 00:17:44]} {[%emt 00:00:42]} Kc7 {[%clk 00:19:47]}
{[%emt 00:00:41]} 30. Kd2 {[%clk 00:17:16]} {[%emt 00:00:44]} Kb6 {[%clk
00:19:45]} {[%emt 00:00:14]} 31. Rc1 {[%clk 00:11:53]} {[%emt 00:05:41]} Kc5
{[%clk 00:19:40]} {[%emt 00:00:19]} 32. Kd3 {[%clk 00:11:49]} {[%emt 00:00:20]}
Ra4 {[%clk 00:18:49]} {[%emt 00:01:05]} 33. f3 {[%clk 00:11:28]} {[%emt
00:00:37]} Kb4 {[%clk 00:16:09]} {[%emt 00:02:54]} 34. Rb1 {[%clk 00:11:16]}
{[%emt 00:00:28]} Ra8 {[%clk 00:15:42]} {[%emt 00:00:42]} 35. Rc1 {[%clk
00:10:22]} {[%emt 00:01:09]} Rd8+ {[%clk 00:14:42]} {[%emt 00:01:14]} 36. Ke2
{[%clk 00:10:29]} {[%emt 00:00:09]} Rd4 {[%clk 00:14:34]} {[%emt 00:00:08]} 37.
c5 {[%clk 00:08:37]} {[%emt 00:02:08]} gxf3+ {[%clk 00:12:35]} {[%emt
00:02:27]} 38. gxf3 {[%clk 00:08:33]} {[%emt 00:00:18]} Bc4+ {[%clk 00:12:46]}
{[%emt 00:00:06]} 39. Ke1 {[%clk 00:05:47]} {[%emt 00:03:02]} Kxc5 {[%clk
00:12:22]} {[%emt 00:00:39]} 40. Kf2 {[%clk 00:04:03]} {[%emt 00:01:59]} b5
{[%clk 00:10:03]} {[%emt 00:02:34]} 41. Kg2 {[%clk 00:03:48]} {[%emt 00:00:30]}
Rd2+ {[%clk 00:09:17]} {[%emt 00:01:00]} 0-1

[Event "BPB Limburg Open 2019 Group A"]
[Site "Maastricht, Netherlands"]
[Date "2019.06.09"]
[Round "4.6"]
[White "Elgersma, Onno"]
[Black "Van Foreest, Lucas"]
[Result "0-1"]
[TimeControl "2h + 15 sec/move"]
[WhiteFideId "1053531"]
[BlackFideId "1039792"]
[WhiteElo "2173"]
[BlackElo "2522"]

1. e4 {[%clk 02:00:27]} {[%emt 00:00:04]} c5 {[%clk 01:56:58]} {[%emt
00:03:32]} 2. Nf3 {[%clk 02:00:31]} {[%emt 00:00:10]} e6 {[%clk 01:57:03]}
{[%emt 00:00:10]} 3. d4 {[%clk 02:00:12]} {[%emt 00:00:34]} cxd4 {[%clk
01:57:08]} {[%emt 00:00:10]} 4. Nxd4 {[%clk 02:00:22]} {[%emt 00:00:05]} Nc6
{[%clk 01:57:20]} {[%emt 00:00:03]} 5. Nc3 {[%clk 02:00:16]} {[%emt 00:00:21]}
Qc7 {[%clk 01:57:30]} {[%emt 00:00:05]} 6. g3 {[%clk 01:58:57]} {[%emt
00:01:34]} a6 {[%clk 01:57:07]} {[%emt 00:00:38]} 7. Bg2 {[%clk 01:59:06]}
{[%emt 00:00:05]} Nf6 {[%clk 01:57:19]} {[%emt 00:00:03]} 8. O-O {[%clk
01:58:51]} {[%emt 00:00:30]} h5 {[%clk 01:57:31]} {[%emt 00:00:03]} 9. Nxc6
{[%clk 01:45:17]} {[%emt 00:13:49]} dxc6 {[%clk 01:57:02]} {[%emt 00:00:43]} 10.
Qe2 {[%clk 01:43:39]} {[%emt 00:01:54]} e5 {[%clk 01:56:12]} {[%emt 00:01:05]}
11. h3 {[%clk 01:42:35]} {[%emt 00:01:19]} Be6 {[%clk 01:41:31]} {[%emt
00:14:56]} 12. a4 {[%clk 01:36:23]} {[%emt 00:06:27]} a5 {[%clk 01:31:58]}
{[%emt 00:09:48]} 13. Nd1 {[%clk 01:26:58]} {[%emt 00:09:40]} Bc5 {[%clk
01:23:12]} {[%emt 00:08:59]} 14. Ne3 {[%clk 01:24:47]} {[%emt 00:02:28]} g6
{[%clk 01:21:59]} {[%emt 00:01:28]} 15. c3 {[%clk 01:15:41]} {[%emt 00:09:21]}
h4 {[%clk 01:18:26]} {[%emt 00:03:47]} 16. g4 {[%clk 01:15:31]} {[%emt
00:00:25]} Kf8 {[%clk 01:18:27]} {[%emt 00:00:14]} 17. Bd2 {[%clk 01:08:10]}
{[%emt 00:07:36]} Kg7 {[%clk 01:17:04]} {[%emt 00:01:37]} 18. Kh1 {[%clk
01:02:37]} {[%emt 00:05:49]} Rhd8 {[%clk 01:14:14]} {[%emt 00:03:05]} 19. f4
{[%clk 00:51:17]} {[%emt 00:11:36]} exf4 {[%clk 01:12:47]} {[%emt 00:01:40]} 20.
Rxf4 {[%clk 00:51:25]} {[%emt 00:00:07]} Rxd2 {[%clk 01:06:38]} {[%emt
00:06:24]} 21. Qxd2 {[%clk 00:50:45]} {[%emt 00:00:56]} Rd8 {[%clk 01:06:44]}
{[%emt 00:00:08]} 22. Qf2 {[%clk 00:48:28]} {[%emt 00:02:32]} Qe5 {[%clk
01:00:50]} {[%emt 00:06:08]} 23. Rf1 {[%clk 00:43:22]} {[%emt 00:05:22]} Bxe3
{[%clk 00:47:37]} {[%emt 00:13:28]} 24. Qxe3 {[%clk 00:43:25]} {[%emt
00:00:13]} Nd5 {[%clk 00:47:48]} {[%emt 00:00:04]} 25. Qd2 {[%clk 00:32:31]}
{[%emt 00:11:10]} Nxf4 {[%clk 00:47:58]} {[%emt 00:00:05]} 26. Qxd8 {[%clk
00:32:21]} {[%emt 00:00:25]} Nxg2 {[%clk 00:43:15]} {[%emt 00:04:57]} 27. Qd2
{[%clk 00:31:08]} {[%emt 00:01:29]} Bc4 {[%clk 00:43:25]} {[%emt 00:00:05]} 28.
Qxg2 {[%clk 00:22:32]} {[%emt 00:08:51]} Bxf1 {[%clk 00:43:34]} {[%emt
00:00:05]} 29. Qxf1 {[%clk 00:22:45]} {[%emt 00:00:03]} Qxe4+ {[%clk 00:43:43]}
{[%emt 00:00:05]} 30. Kg1 {[%clk 00:22:45]} {[%emt 00:00:15]} Qxa4 {[%clk
00:43:12]} {[%emt 00:00:46]} 31. Qf2 {[%clk 00:20:31]} {[%emt 00:02:29]} Qd1+
{[%clk 00:43:09]} {[%emt 00:00:18]} 32. Kg2 {[%clk 00:19:24]} {[%emt 00:01:22]}
a4 {[%clk 00:42:59]} {[%emt 00:00:25]} 33. Kh2 {[%clk 00:13:21]} {[%emt
00:06:18]} Qd6+ {[%clk 00:42:50]} {[%emt 00:00:23]} 34. Kh1 {[%clk 00:13:28]}
{[%emt 00:00:08]} Qg3 {[%clk 00:42:11]} {[%emt 00:00:53]} 35. Qf1 {[%clk
00:12:41]} {[%emt 00:01:04]} b5 {[%clk 00:42:12]} {[%emt 00:00:13]} 0-1